[Event "*** SCC Grand Prix: Titled Tuesday Blitz"]
[Site "Chess.com"]
[Date "2020.06.02"]
[Round "2"]
[White "letsgoband"]
[Black "iaraldinho"]
[Result "1-0"]
[WhiteElo "2448"]
[BlackElo "2649"]
[TimeControl "180+1"]
[EndTime "10:17:48 PDT"]
[Termination "letsgoband won by resignation"]

1. e4 {[%clk 0:03:00.9]} 1... c5 {[%clk 0:02:59.2]} 2. Nf3 {[%clk 0:02:59.4]}
2... a6 {[%clk 0:02:57.6]} 3. Nc3 {[%clk 0:02:57.7]} 3... e6 {[%clk 0:02:57.2]}
4. g3 {[%clk 0:02:57.3]} 4... Nc6 {[%clk 0:02:56.9]} 5. Bg2 {[%clk 0:02:57.6]}
5... Nf6 {[%clk 0:02:57.1]} 6. O-O {[%clk 0:02:57.7]} 6... Be7 {[%clk
0:02:56.2]} 7. d4 {[%clk 0:02:57.6]} 7... cxd4 {[%clk 0:02:56.4]} 8. Nxd4 {[%clk
0:02:58.5]} 8... Nxd4 {[%clk 0:02:56.1]} 9. Qxd4 {[%clk 0:02:58]} 9... Qc7
{[%clk 0:02:56.2]} 10. Bf4 {[%clk 0:02:57.2]} 10... d6 {[%clk 0:02:55.6]} 11.
Qd2 {[%clk 0:02:53.6]} 11... O-O {[%clk 0:02:54.5]} 12. Rad1 {[%clk 0:02:54.1]}
12... e5 {[%clk 0:02:54.5]} 13. Bg5 {[%clk 0:02:52.1]} 13... Bg4 {[%clk
0:02:53.7]} 14. Bxf6 {[%clk 0:02:47.8]} 14... Bxf6 {[%clk 0:02:50.3]} 15. Qxd6
{[%clk 0:02:46.5]} 15... Qa5 {[%clk 0:02:44.5]} 16. Rd5 {[%clk 0:02:39.8]} 16...
b5 {[%clk 0:02:39.9]} 17. a3 {[%clk 0:02:37.3]} 17... Be6 {[%clk 0:02:31.5]} 18.
Rdd1 {[%clk 0:02:31.5]} 18... Rac8 {[%clk 0:02:27.8]} 19. Rfe1 {[%clk
0:02:04.5]} 19... h6 {[%clk 0:02:19.1]} 20. h4 {[%clk 0:01:58.6]} 20... Rfd8
{[%clk 0:02:17.3]} 21. Qb4 {[%clk 0:01:58.1]} 21... Qxb4 {[%clk 0:02:15.7]} 22.
axb4 {[%clk 0:01:59]} 22... Rd4 {[%clk 0:02:15.8]} 23. Nd5 {[%clk 0:01:29.4]}
23... Rxc2 {[%clk 0:02:06.7]} 24. Ra1 {[%clk 0:01:20.9]} 24... Rdd2 {[%clk
0:01:57.9]} 25. Rf1 {[%clk 0:01:19.6]} 25... Rxb2 {[%clk 0:01:48.3]} 26. Rxa6
{[%clk 0:01:19.3]} 26... Bxd5 {[%clk 0:01:48.2]} 27. exd5 {[%clk 0:01:20.2]}
27... e4 {[%clk 0:01:48.6]} 28. Bxe4 {[%clk 0:01:12.9]} 28... Kf8 {[%clk
0:01:43.7]} 29. d6 {[%clk 0:01:02.8]} 29... Ra2 {[%clk 0:01:43.4]} 30. Rxa2
{[%clk 0:01:01.4]} 30... Rxa2 {[%clk 0:01:44.3]} 31. Rc1 {[%clk 0:00:42.8]}
31... g6 {[%clk 0:01:39.7]} 32. Rc8+ {[%clk 0:00:39.6]} 32... Kg7 {[%clk
0:01:40.1]} 33. d7 {[%clk 0:00:39.7]} 33... Rd2 {[%clk 0:01:40]} 34. Bc6 {[%clk
0:00:38.3]} 34... Be7 {[%clk 0:01:34.2]} 35. Bxb5 {[%clk 0:00:37.2]} 35... g5
{[%clk 0:01:28.6]} 36. hxg5 {[%clk 0:00:36.6]} 36... hxg5 {[%clk 0:01:28.2]} 37.
Bc6 {[%clk 0:00:32.5]} 37... g4 {[%clk 0:00:43.3]} 38. b5 {[%clk 0:00:31.9]}
38... Rd1+ {[%clk 0:00:36.4]} 39. Kg2 {[%clk 0:00:30.4]} 39... Rd2 {[%clk
0:00:36.6]} 40. Kf1 {[%clk 0:00:24.7]} 40... Kf6 {[%clk 0:00:10.6]} 41. b6
{[%clk 0:00:24.2]} 41... Rd1+ {[%clk 0:00:11]} 42. Ke2 {[%clk 0:00:24]} 42...
Rb1 {[%clk 0:00:11.9]} 43. b7 {[%clk 0:00:23.2]} 43... Rb2+ {[%clk 0:00:10.7]}
44. Kd3 {[%clk 0:00:21.7]} 44... Rb3+ {[%clk 0:00:10.9]} 45. Kc2 {[%clk
0:00:21.4]} 1-0

[Event "*** SCC Grand Prix: Titled Tuesday Blitz"]
[Site "Chess.com"]
[Date "2020.06.02"]
[Round "2"]
[White "Radzio1987"]
[Black "AliKa2810"]
[Result "1/2-1/2"]
[WhiteElo "2908"]
[BlackElo "2572"]
[TimeControl "180+1"]
[EndTime "10:17:49 PDT"]
[Termination "Game drawn by repetition"]

1. Nf3 {[%clk 0:03:00.9]} 1... Nf6 {[%clk 0:02:59]} 2. c4 {[%clk 0:03:00.9]}
2... e6 {[%clk 0:02:58.8]} 3. d4 {[%clk 0:02:57.4]} 3... d5 {[%clk 0:02:59.2]}
4. g3 {[%clk 0:02:57.4]} 4... Bb4+ {[%clk 0:02:58.5]} 5. Bd2 {[%clk 0:02:57.6]}
5... Be7 {[%clk 0:02:58.7]} 6. Qc2 {[%clk 0:02:57.9]} 6... O-O {[%clk
0:02:58.8]} 7. Bg2 {[%clk 0:02:58.2]} 7... Nbd7 {[%clk 0:02:58.2]} 8. O-O {[%clk
0:02:58]} 8... c6 {[%clk 0:02:58.4]} 9. Rd1 {[%clk 0:02:57.7]} 9... b6 {[%clk
0:02:57.9]} 10. b3 {[%clk 0:02:58]} 10... a5 {[%clk 0:02:57.3]} 11. Bc3 {[%clk
0:02:57.8]} 11... Ne4 {[%clk 0:02:56.8]} 12. Bb2 {[%clk 0:02:55.6]} 12... Ba6
{[%clk 0:02:05.1]} 13. Ne1 {[%clk 0:02:50.1]} 13... f5 {[%clk 0:02:03.5]} 14.
Nd2 {[%clk 0:02:48.5]} 14... Bd6 {[%clk 0:02:02.4]} 15. Nd3 {[%clk 0:02:45.2]}
15... Qf6 {[%clk 0:01:55.3]} 16. Nf3 {[%clk 0:02:41.5]} 16... Rac8 {[%clk
0:01:53.5]} 17. Rac1 {[%clk 0:02:28.2]} 17... Qe7 {[%clk 0:01:48.1]} 18. Nfe5
{[%clk 0:02:26]} 18... Nxe5 {[%clk 0:01:43.2]} 19. Nxe5 {[%clk 0:02:11.8]} 19...
Bb7 {[%clk 0:01:30.9]} 20. e3 {[%clk 0:02:06.5]} 20... c5 {[%clk 0:01:29.1]} 21.
Qe2 {[%clk 0:01:57.1]} 21... Rc7 {[%clk 0:01:10.9]} 22. dxc5 {[%clk 0:01:46.2]}
22... bxc5 {[%clk 0:01:07.3]} 23. Nd3 {[%clk 0:01:45.9]} 23... dxc4 {[%clk
0:00:44.8]} 24. bxc4 {[%clk 0:00:44.7]} 24... Nf6 {[%clk 0:00:44.1]} 25. Be5
{[%clk 0:00:37]} 25... Bxg2 {[%clk 0:00:41.7]} 26. Kxg2 {[%clk 0:00:37.9]} 26...
Rb7 {[%clk 0:00:38.7]} 27. Rb1 {[%clk 0:00:33.7]} 27... Rfb8 {[%clk 0:00:38.2]}
28. Rxb7 {[%clk 0:00:30.3]} 28... Rxb7 {[%clk 0:00:33.8]} 29. Bxf6 {[%clk
0:00:27.7]} 29... Qxf6 {[%clk 0:00:32.8]} 30. Qc2 {[%clk 0:00:27.8]} 30... h5
{[%clk 0:00:19.8]} 31. h4 {[%clk 0:00:26.5]} 31... g5 {[%clk 0:00:17.8]} 32.
hxg5 {[%clk 0:00:27.4]} 32... Qxg5 {[%clk 0:00:17.7]} 33. Rh1 {[%clk 0:00:27.1]}
33... Rg7 {[%clk 0:00:16.9]} 34. Kf1 {[%clk 0:00:14.4]} 34... Bxg3 {[%clk
0:00:13.1]} 35. fxg3 {[%clk 0:00:13.6]} 35... Qxg3 {[%clk 0:00:13.7]} 36. Qf2
{[%clk 0:00:13.5]} 36... Qg4 {[%clk 0:00:12.9]} 37. Qe2 {[%clk 0:00:13.5]} 37...
Qxc4 {[%clk 0:00:11.2]} 38. Nf4 {[%clk 0:00:13]} 38... Qc1+ {[%clk 0:00:10.7]}
39. Qe1 {[%clk 0:00:13.4]} 39... Qc4+ {[%clk 0:00:08.4]} 40. Qe2 {[%clk
0:00:12.8]} 40... Qc1+ {[%clk 0:00:08.4]} 41. Qe1 {[%clk 0:00:13.2]} 41... Qc4+
{[%clk 0:00:08.5]} 42. Qe2 {[%clk 0:00:09]} 1/2-1/2

[Event "*** SCC Grand Prix: Titled Tuesday Blitz"]
[Site "Chess.com"]
[Date "2020.06.02"]
[Round "2"]
[White "crywolf1986"]
[Black "Dynamikus"]
[Result "0-1"]
[WhiteElo "2500"]
[BlackElo "2740"]
[TimeControl "180+1"]
[EndTime "10:17:49 PDT"]
[Termination "Dynamikus won by checkmate"]

1. d4 {[%clk 0:03:00.8]} 1... Nf6 {[%clk 0:02:59.8]} 2. Nf3 {[%clk 0:02:56.4]}
2... g6 {[%clk 0:02:59.9]} 3. c4 {[%clk 0:02:57.3]} 3... Bg7 {[%clk 0:03:00.2]}
4. g3 {[%clk 0:02:57.5]} 4... O-O {[%clk 0:03:01.1]} 5. Bg2 {[%clk 0:02:57.1]}
5... d6 {[%clk 0:03:02]} 6. O-O {[%clk 0:02:57.1]} 6... Nc6 {[%clk 0:03:02.3]}
7. Nc3 {[%clk 0:02:56]} 7... e5 {[%clk 0:03:02.2]} 8. dxe5 {[%clk 0:02:49.5]}
8... dxe5 {[%clk 0:03:03.1]} 9. Qxd8 {[%clk 0:02:47]} 9... Rxd8 {[%clk 0:03:04]}
10. Bg5 {[%clk 0:02:47.1]} 10... Be6 {[%clk 0:02:50.8]} 11. b3 {[%clk
0:02:37.7]} 11... h6 {[%clk 0:02:42.4]} 12. Bxf6 {[%clk 0:02:37]} 12... Bxf6
{[%clk 0:02:43.3]} 13. e4 {[%clk 0:02:36.2]} 13... Rd7 {[%clk 0:02:22.4]} 14.
Nd5 {[%clk 0:02:31.8]} 14... Kg7 {[%clk 0:02:22.2]} 15. a3 {[%clk 0:02:21.9]}
15... Bg4 {[%clk 0:02:16.8]} 16. Rab1 {[%clk 0:02:15.5]} 16... Bxf3 {[%clk
0:02:12.2]} 17. Bxf3 {[%clk 0:02:16.4]} 17... h5 {[%clk 0:02:08.6]} 18. Bg2
{[%clk 0:02:15.5]} 18... Nd4 {[%clk 0:01:37.5]} 19. Bh3 {[%clk 0:01:55.7]} 19...
Ne6 {[%clk 0:01:37.4]} 20. Bxe6 {[%clk 0:01:54.7]} 20... fxe6 {[%clk 0:01:38.3]}
21. Nxf6 {[%clk 0:01:54.9]} 21... Kxf6 {[%clk 0:01:39]} 22. Rfd1 {[%clk
0:01:42.7]} 22... Rad8 {[%clk 0:01:38.7]} 23. Rxd7 {[%clk 0:01:42.5]} 23... Rxd7
{[%clk 0:01:39.6]} 24. Kf1 {[%clk 0:01:42.9]} 24... Rd4 {[%clk 0:01:33.3]} 25.
Re1 {[%clk 0:01:41]} 25... g5 {[%clk 0:01:29.2]} 26. h3 {[%clk 0:01:40.1]} 26...
a5 {[%clk 0:01:25]} 27. a4 {[%clk 0:01:39]} 27... Ke7 {[%clk 0:01:06.6]} 28. Re3
{[%clk 0:01:35.9]} 28... Kd6 {[%clk 0:01:00.9]} 29. h4 {[%clk 0:01:27.4]} 29...
g4 {[%clk 0:00:59.2]} 30. Ke2 {[%clk 0:01:26.5]} 30... Kc5 {[%clk 0:00:58]} 31.
f3 {[%clk 0:01:26.8]} 31... gxf3+ {[%clk 0:00:57.5]} 32. Kxf3 {[%clk 0:01:27.7]}
32... Rd1 {[%clk 0:00:32.9]} 33. g4 {[%clk 0:01:27.1]} 33... Rh1 {[%clk
0:00:27.8]} 34. g5 {[%clk 0:01:10.1]} 34... Rxh4 {[%clk 0:00:27.8]} 35. Re2
{[%clk 0:01:08.8]} 35... Rf4+ {[%clk 0:00:26.6]} 36. Ke3 {[%clk 0:01:05.3]}
36... Rg4 {[%clk 0:00:27.5]} 37. Rh2 {[%clk 0:01:04.6]} 37... Rxg5 {[%clk
0:00:27]} 38. Rh3 {[%clk 0:01:04.8]} 38... Kb4 {[%clk 0:00:26.8]} 39. Kf2 {[%clk
0:00:58.9]} 39... c6 {[%clk 0:00:26]} 40. Ke2 {[%clk 0:00:54.1]} 40... b6 {[%clk
0:00:25.9]} 41. Kd2 {[%clk 0:00:53.8]} 41... Rg2+ {[%clk 0:00:25]} 42. Kd3
{[%clk 0:00:51.3]} 42... Rb2 {[%clk 0:00:23.4]} 43. Rxh5 {[%clk 0:00:51.2]}
43... Rxb3+ {[%clk 0:00:24]} 44. Kd2 {[%clk 0:00:50.9]} 44... Kxc4 {[%clk
0:00:22.4]} 45. Rxe5 {[%clk 0:00:51.1]} 45... b5 {[%clk 0:00:23]} 46. axb5
{[%clk 0:00:49.9]} 46... cxb5 {[%clk 0:00:23.8]} 47. Rxe6 {[%clk 0:00:50.3]}
47... a4 {[%clk 0:00:23.6]} 48. e5 {[%clk 0:00:48.9]} 48... a3 {[%clk 0:00:23]}
49. Ra6 {[%clk 0:00:45.5]} 49... b4 {[%clk 0:00:21.6]} 50. e6 {[%clk 0:00:45.3]}
50... Rb2+ {[%clk 0:00:21.9]} 51. Ke1 {[%clk 0:00:43.4]} 51... Kd3 {[%clk
0:00:20.3]} 52. e7 {[%clk 0:00:43]} 52... Re2+ {[%clk 0:00:19.7]} 53. Kd1 {[%clk
0:00:43.1]} 53... Rxe7 {[%clk 0:00:20.6]} 54. Kc1 {[%clk 0:00:42.9]} 54... Re1#
{[%clk 0:00:19.5]} 0-1

[Event "*** SCC Grand Prix: Titled Tuesday Blitz"]
[Site "Chess.com"]
[Date "2020.06.02"]
[Round "2"]
[White "amelia91"]
[Black "Nastya_Rakhmangulova"]
[Result "1-0"]
[WhiteElo "1960"]
[BlackElo "2334"]
[TimeControl "180+1"]
[EndTime "10:17:49 PDT"]
[Termination "amelia91 won on time"]

1. d4 {[%clk 0:03:00.9]} 1... d5 {[%clk 0:02:59.6]} 2. Nf3 {[%clk 0:02:43.2]}
2... Nf6 {[%clk 0:02:58.3]} 3. e3 {[%clk 0:02:43]} 3... e6 {[%clk 0:02:55.4]} 4.
Bd3 {[%clk 0:02:42.5]} 4... Bd6 {[%clk 0:02:55.3]} 5. Nbd2 {[%clk 0:02:39.9]}
5... b6 {[%clk 0:02:50.8]} 6. Ne5 {[%clk 0:02:34.8]} 6... Bxe5 {[%clk
0:02:28.1]} 7. dxe5 {[%clk 0:02:34.4]} 7... Nfd7 {[%clk 0:02:28.8]} 8. f4 {[%clk
0:02:33.7]} 8... c5 {[%clk 0:02:29]} 9. Qg4 {[%clk 0:02:26.3]} 9... g6 {[%clk
0:02:20.1]} 10. c3 {[%clk 0:02:24.1]} 10... Bb7 {[%clk 0:02:19.5]} 11. Nf3
{[%clk 0:02:17.4]} 11... Nc6 {[%clk 0:02:12.2]} 12. Bd2 {[%clk 0:02:13.7]} 12...
Qe7 {[%clk 0:02:07.4]} 13. O-O {[%clk 0:02:05.5]} 13... O-O-O {[%clk 0:01:58.4]}
14. a3 {[%clk 0:02:03.7]} 14... f6 {[%clk 0:01:48.2]} 15. exf6 {[%clk
0:01:59.6]} 15... Nxf6 {[%clk 0:01:47.2]} 16. Qg3 {[%clk 0:01:56.7]} 16... Ne4
{[%clk 0:01:43.7]} 17. Qe1 {[%clk 0:01:47]} 17... e5 {[%clk 0:01:38.3]} 18. Bxe4
{[%clk 0:01:32.7]} 18... dxe4 {[%clk 0:01:36.4]} 19. Ng5 {[%clk 0:01:31.4]}
19... exf4 {[%clk 0:01:32.1]} 20. exf4 {[%clk 0:01:28.5]} 20... Rhe8 {[%clk
0:01:23.3]} 21. Be3 {[%clk 0:01:21.4]} 21... h6 {[%clk 0:01:19.6]} 22. Nh3
{[%clk 0:01:20.7]} 22... Na5 {[%clk 0:01:13]} 23. b4 {[%clk 0:01:15.3]} 23...
Nc4 {[%clk 0:01:07.4]} 24. bxc5 {[%clk 0:01:07.9]} 24... Nxe3 {[%clk 0:01:07]}
25. Qxe3 {[%clk 0:01:03.7]} 25... Rd3 {[%clk 0:01:06.4]} 26. Qe2 {[%clk
0:00:54]} 26... Qxc5+ {[%clk 0:01:04.6]} 27. Kh1 {[%clk 0:00:54]} 27... e3
{[%clk 0:01:01.8]} 28. Qxd3 {[%clk 0:00:48.8]} 28... Qh5 {[%clk 0:00:50.1]} 29.
Ng1 {[%clk 0:00:33]} 29... Qg4 {[%clk 0:00:28.7]} 30. Qe2 {[%clk 0:00:30.8]}
30... Qf5 {[%clk 0:00:09.4]} 31. h3 {[%clk 0:00:21.5]} 31... Kb8 {[%clk
0:00:09.5]} 32. Rad1 {[%clk 0:00:20.6]} 32... a5 {[%clk 0:00:06.5]} 33. Kh2
{[%clk 0:00:19.9]} 33... Ka7 {[%clk 0:00:06.6]} 34. Rd4 {[%clk 0:00:16.9]} 34...
Ba6 {[%clk 0:00:05.1]} 35. Qd1 {[%clk 0:00:10.1]} 35... Bxf1 {[%clk 0:00:01.7]}
36. Qxf1 {[%clk 0:00:10.6]} 36... Qc5 {[%clk 0:00:01]} 37. Qd3 {[%clk
0:00:08.4]} 1-0

[Event "*** SCC Grand Prix: Titled Tuesday Blitz"]
[Site "Chess.com"]
[Date "2020.06.02"]
[Round "2"]
[White "Fandorine"]
[Black "rubhani"]
[Result "1-0"]
[WhiteElo "2905"]
[BlackElo "2564"]
[TimeControl "180+1"]
[EndTime "10:17:50 PDT"]
[Termination "Fandorine won by checkmate"]

1. e4 {[%clk 0:03:00.9]} 1... c5 {[%clk 0:02:59.2]} 2. Nf3 {[%clk 0:02:59.6]}
2... d6 {[%clk 0:02:58.8]} 3. d4 {[%clk 0:02:54.1]} 3... cxd4 {[%clk 0:02:59.7]}
4. Nxd4 {[%clk 0:02:55]} 4... Nf6 {[%clk 0:02:59.4]} 5. Nc3 {[%clk 0:02:55.7]}
5... a6 {[%clk 0:02:58.4]} 6. h3 {[%clk 0:02:52.4]} 6... e6 {[%clk 0:02:58.6]}
7. g4 {[%clk 0:02:49.8]} 7... Nfd7 {[%clk 0:02:58.8]} 8. Bg2 {[%clk 0:02:46.6]}
8... Be7 {[%clk 0:02:58.7]} 9. g5 {[%clk 0:02:46.9]} 9... Nc6 {[%clk 0:02:57.8]}
10. h4 {[%clk 0:02:44.6]} 10... Qc7 {[%clk 0:02:42.7]} 11. Be3 {[%clk
0:02:40.6]} 11... Nce5 {[%clk 0:02:37]} 12. Qe2 {[%clk 0:02:40.9]} 12... b5
{[%clk 0:02:35.8]} 13. O-O-O {[%clk 0:02:18.6]} 13... Bb7 {[%clk 0:02:31.9]} 14.
f4 {[%clk 0:01:42.6]} 14... Nc4 {[%clk 0:02:28.8]} 15. f5 {[%clk 0:01:43.1]}
15... Nxe3 {[%clk 0:01:59.6]} 16. Qxe3 {[%clk 0:01:37.1]} 16... Nc5 {[%clk
0:01:59.3]} 17. fxe6 {[%clk 0:01:33.1]} 17... fxe6 {[%clk 0:01:57.1]} 18. Bh3
{[%clk 0:01:32.8]} 18... b4 {[%clk 0:01:38.6]} 19. Na4 {[%clk 0:01:24.2]} 19...
e5 {[%clk 0:01:11]} 20. Ne6 {[%clk 0:01:14]} 20... Nxe6 {[%clk 0:01:09.3]} 21.
Bxe6 {[%clk 0:01:14.9]} 21... Bc8 {[%clk 0:00:34.6]} 22. Bd5 {[%clk 0:01:14.5]}
22... Rb8 {[%clk 0:00:34.7]} 23. Rhf1 {[%clk 0:00:59.6]} 23... Bd7 {[%clk
0:00:34.7]} 24. b3 {[%clk 0:00:44.8]} 24... Rf8 {[%clk 0:00:29.2]} 25. Rxf8+
{[%clk 0:00:41.1]} 25... Bxf8 {[%clk 0:00:28.8]} 26. Nb2 {[%clk 0:00:41.3]}
26... Qc3 {[%clk 0:00:21.8]} 27. Qxc3 {[%clk 0:00:29.5]} 27... bxc3 {[%clk
0:00:21.9]} 28. Nc4 {[%clk 0:00:30.1]} 28... Bb5 {[%clk 0:00:21.1]} 29. a4
{[%clk 0:00:27.5]} 29... Bxc4 {[%clk 0:00:20.8]} 30. Bxc4 {[%clk 0:00:28.4]}
30... a5 {[%clk 0:00:21.2]} 31. Rd3 {[%clk 0:00:28.9]} 31... h6 {[%clk
0:00:20.7]} 32. gxh6 {[%clk 0:00:23.7]} 32... gxh6 {[%clk 0:00:20.7]} 33. h5
{[%clk 0:00:24.4]} 33... Be7 {[%clk 0:00:20.9]} 34. Rxc3 {[%clk 0:00:24.1]}
34... Bg5+ {[%clk 0:00:21.8]} 35. Kb2 {[%clk 0:00:21.9]} 35... Kd8 {[%clk
0:00:22.2]} 36. Rf3 {[%clk 0:00:21.6]} 36... Rb7 {[%clk 0:00:20.8]} 37. Bd5
{[%clk 0:00:20.9]} 37... Re7 {[%clk 0:00:20.5]} 38. c3 {[%clk 0:00:20.4]} 38...
Kc7 {[%clk 0:00:20.5]} 39. b4 {[%clk 0:00:20.9]} 39... Kb6 {[%clk 0:00:20.9]}
40. Kb3 {[%clk 0:00:21.3]} 40... Rc7 {[%clk 0:00:20.5]} 41. Rf8 {[%clk
0:00:17.8]} 41... Bd2 {[%clk 0:00:20.1]} 42. Rb8+ {[%clk 0:00:14.7]} 42... Ka7
{[%clk 0:00:19.9]} 43. Ra8+ {[%clk 0:00:14.7]} 43... Kb6 {[%clk 0:00:18.5]} 44.
bxa5+ {[%clk 0:00:15.2]} 44... Kc5 {[%clk 0:00:18.9]} 45. Rb8 {[%clk 0:00:14.4]}
45... Ra7 {[%clk 0:00:18.2]} 46. Rb5# {[%clk 0:00:14.5]} 1-0

[Event "*** SCC Grand Prix: Titled Tuesday Blitz"]
[Site "Chess.com"]
[Date "2020.06.02"]
[Round "2"]
[White "Marty435"]
[Black "Vuk2000"]
[Result "1/2-1/2"]
[WhiteElo "2439"]
[BlackElo "2656"]
[TimeControl "180+1"]
[EndTime "10:17:50 PDT"]
[Termination "Game drawn by repetition"]

1. e4 {[%clk 0:03:00.9]} 1... e6 {[%clk 0:03:00.1]} 2. d4 {[%clk 0:03:00.4]}
2... d5 {[%clk 0:02:59.9]} 3. Nc3 {[%clk 0:03:00.9]} 3... Bb4 {[%clk 0:02:59.3]}
4. e5 {[%clk 0:03:01.5]} 4... c5 {[%clk 0:02:58.6]} 5. a3 {[%clk 0:03:01.5]}
5... Bxc3+ {[%clk 0:02:58.8]} 6. bxc3 {[%clk 0:03:02.4]} 6... Ne7 {[%clk
0:02:58]} 7. Qg4 {[%clk 0:03:02.1]} 7... Qc7 {[%clk 0:02:57.9]} 8. Qxg7 {[%clk
0:03:01.3]} 8... Rg8 {[%clk 0:02:57]} 9. Qxh7 {[%clk 0:03:01.9]} 9... cxd4
{[%clk 0:02:57.3]} 10. Ne2 {[%clk 0:03:02.1]} 10... Nbc6 {[%clk 0:02:57.5]} 11.
f4 {[%clk 0:03:01.2]} 11... Bd7 {[%clk 0:02:56.6]} 12. Qd3 {[%clk 0:02:59.5]}
12... dxc3 {[%clk 0:02:54.8]} 13. Qxc3 {[%clk 0:02:58.4]} 13... Nf5 {[%clk
0:02:52.4]} 14. Rg1 {[%clk 0:02:48.9]} 14... Qb6 {[%clk 0:02:48.6]} 15. g4
{[%clk 0:02:22]} 15... Rc8 {[%clk 0:02:38.3]} 16. gxf5 {[%clk 0:02:03.4]} 16...
Rxg1 {[%clk 0:02:35.5]} 17. Nxg1 {[%clk 0:02:04]} 17... Qxg1 {[%clk 0:02:35.4]}
18. fxe6 {[%clk 0:01:59.8]} 18... Bxe6 {[%clk 0:02:26.6]} 19. Qe3 {[%clk
0:01:33.6]} 19... Qxh2 {[%clk 0:02:22.2]} 20. Bd2 {[%clk 0:01:24.7]} 20... Bg4
{[%clk 0:02:01.2]} 21. Rb1 {[%clk 0:01:05]} 21... b6 {[%clk 0:01:43.4]} 22. Qf2
{[%clk 0:00:53.1]} 22... Qh1 {[%clk 0:01:41.6]} 23. Qg2 {[%clk 0:00:47.7]} 23...
Qh4+ {[%clk 0:01:39.4]} 24. Qf2 {[%clk 0:00:47.4]} 24... Qh7 {[%clk 0:01:30.7]}
25. Ba6 {[%clk 0:00:37.8]} 25... Qxc2 {[%clk 0:01:21]} 26. Rc1 {[%clk
0:00:35.9]} 26... Qe4+ {[%clk 0:01:20.2]} 27. Qe3 {[%clk 0:00:20.2]} 27... Qh1+
{[%clk 0:01:13.4]} 28. Kf2 {[%clk 0:00:20.4]} 28... Qh2+ {[%clk 0:01:11.8]} 29.
Ke1 {[%clk 0:00:20.8]} 29... Rc7 {[%clk 0:00:53.3]} 30. Bb5 {[%clk 0:00:20.4]}
30... Bd7 {[%clk 0:00:48]} 31. e6 {[%clk 0:00:20.3]} 31... fxe6 {[%clk
0:00:42.3]} 32. Bxc6 {[%clk 0:00:20.3]} 32... Qh4+ {[%clk 0:00:33.1]} 33. Kf1
{[%clk 0:00:16.4]} 33... Qh1+ {[%clk 0:00:24.2]} 34. Kf2 {[%clk 0:00:16.7]}
34... Qh2+ {[%clk 0:00:22.4]} 35. Kf1 {[%clk 0:00:15.8]} 35... Qh1+ {[%clk
0:00:18.9]} 36. Ke2 {[%clk 0:00:12.1]} 36... Qh5+ {[%clk 0:00:17.4]} 37. Kf2
{[%clk 0:00:09.7]} 37... Qh4+ {[%clk 0:00:16]} 38. Kf1 {[%clk 0:00:09.3]} 38...
Qh1+ {[%clk 0:00:03.2]} 1/2-1/2

[Event "*** SCC Grand Prix: Titled Tuesday Blitz"]
[Site "Chess.com"]
[Date "2020.06.02"]
[Round "2"]
[White "amintabatabaei"]
[Black "talman67"]
[Result "1-0"]
[WhiteElo "2935"]
[BlackElo "2573"]
[TimeControl "180+1"]
[EndTime "10:17:51 PDT"]
[Termination "amintabatabaei won by resignation"]

1. c4 {[%clk 0:03:00.9]} 1... Nf6 {[%clk 0:02:57.1]} 2. Nc3 {[%clk 0:03:00.7]}
2... e5 {[%clk 0:02:54.3]} 3. Nf3 {[%clk 0:03:00.4]} 3... Nc6 {[%clk 0:02:53.7]}
4. e3 {[%clk 0:03:00.9]} 4... Bb4 {[%clk 0:02:52.6]} 5. Qc2 {[%clk 0:03:01.4]}
5... Bxc3 {[%clk 0:02:49.8]} 6. Qxc3 {[%clk 0:03:02.3]} 6... Qe7 {[%clk
0:02:50.7]} 7. d4 {[%clk 0:03:02.5]} 7... Ne4 {[%clk 0:02:42.5]} 8. Qd3 {[%clk
0:03:01.8]} 8... exd4 {[%clk 0:02:40.1]} 9. Nxd4 {[%clk 0:03:02.7]} 9... Qb4+
{[%clk 0:02:39.1]} 10. Bd2 {[%clk 0:02:27.4]} 10... Qxd2+ {[%clk 0:02:37.9]} 11.
Qxd2 {[%clk 0:02:28.3]} 11... Nxd2 {[%clk 0:02:38.6]} 12. Kxd2 {[%clk
0:02:29.2]} 12... Nxd4 {[%clk 0:02:32.5]} 13. exd4 {[%clk 0:02:30.1]} 13... d6
{[%clk 0:02:26.8]} 14. Re1+ {[%clk 0:02:28.6]} 14... Kd8 {[%clk 0:02:26.3]} 15.
Bd3 {[%clk 0:02:25.9]} 15... h6 {[%clk 0:02:18.1]} 16. h4 {[%clk 0:02:22.1]}
16... Re8 {[%clk 0:02:16.4]} 17. Kc3 {[%clk 0:02:16.3]} 17... Bd7 {[%clk
0:02:09.8]} 18. b4 {[%clk 0:01:46.7]} 18... Re7 {[%clk 0:01:54.5]} 19. Be4
{[%clk 0:01:11.7]} 19... Bc6 {[%clk 0:01:45.1]} 20. Bxc6 {[%clk 0:00:47.2]}
20... bxc6 {[%clk 0:01:46]} 21. a4 {[%clk 0:00:48]} 21... a6 {[%clk 0:01:42.8]}
22. d5 {[%clk 0:00:43.9]} 22... cxd5 {[%clk 0:01:39.5]} 23. cxd5 {[%clk
0:00:44.8]} 23... Rxe1 {[%clk 0:01:33.9]} 24. Rxe1 {[%clk 0:00:45.7]} 24... Kd7
{[%clk 0:01:34.8]} 25. a5 {[%clk 0:00:36.6]} 25... Rb8 {[%clk 0:01:24.9]} 26.
Kc4 {[%clk 0:00:35.9]} 26... Rb7 {[%clk 0:01:22]} 27. h5 {[%clk 0:00:34]} 27...
c6 {[%clk 0:01:21.9]} 28. dxc6+ {[%clk 0:00:31.7]} 28... Kxc6 {[%clk 0:01:22.8]}
29. Re8 {[%clk 0:00:30.6]} 29... Rb5 {[%clk 0:01:03.6]} 30. Rc8+ {[%clk
0:00:16.5]} 30... Kb7 {[%clk 0:01:00.1]} 31. Rf8 {[%clk 0:00:17.1]} 31... Rf5
{[%clk 0:00:54.7]} 32. f3 {[%clk 0:00:17.7]} 32... Kc6 {[%clk 0:00:50.8]} 33.
Rb8 {[%clk 0:00:17]} 33... d5+ {[%clk 0:00:15]} 34. Kd4 {[%clk 0:00:16.2]} 34...
Rf4+ {[%clk 0:00:13.7]} 35. Ke5 {[%clk 0:00:15]} 35... Rc4 {[%clk 0:00:09.3]}
36. Rb6+ {[%clk 0:00:15.1]} 36... Kc7 {[%clk 0:00:02.9]} 37. Kxd5 {[%clk
0:00:16]} 37... Rc2 {[%clk 0:00:03.5]} 38. Rxa6 {[%clk 0:00:15]} 38... Rxg2
{[%clk 0:00:03.4]} 39. Ra7+ {[%clk 0:00:15.5]} 39... Kb8 {[%clk 0:00:02.9]} 40.
Rxf7 {[%clk 0:00:16.4]} 1-0